{"text_format":"3","workbook":"xlsx","n_sheets":5,"sheets":["Data Entry","Cover Page - do not edit","Payments by Payee","Payments by Project","Sheet2"],"not_rendered":{"external_links":1,"defined_names":8},"read":"whole","date_system":"1900"}

{"sheet":"Data Entry","index":0,"n_rows":50,"n_cols":12,"rows_kept":50,"hidden":true,"merged":[[3,0,3,4],[5,0,5,4],[7,0,7,1],[8,0,8,1],[9,0,10,0],[11,0,11,1],[13,0,13,4],[15,0,15,1],[16,0,16,1],[18,0,18,4],[20,0,20,1],[21,0,21,1],[23,0,23,1],[24,0,24,1],[26,0,26,4],[28,0,28,1],[29,0,29,1],[30,0,30,1],[32,0,32,4],[35,0,35,2],[37,0,37,1],[38,0,38,1],[39,0,39,1],[41,0,41,1],[42,0,42,1],[43,0,43,1],[47,0,47,4],[49,0,49,4]]}
["Data Entry Tab - do not print or otherwise include in ESTMA Report",{"$nulls":10},1]
[]
["General Instructions"]
["Information entered in these cells will automatically populate mandatory cells in the cover page and payments tabs. Do not include this tab in your final ESTMA report published online. Once completed, right click on the \"Data Entry\" tab at the bottom of the worksheet and select \"hide\" to avoid printing the Data Entry page (do not delete the tab). Should you wish to bring the tab back, you can right click on any tab, select \"unhide\", and chose \"Data Entry\". "]
[]
["Reporting Entity Information"]
[]
["Reporting Entity Legal Name",null,"PetroKazakhstan Inc.",null,"Enter the full legal name of the Reporting Entity."]
["ESTMA ID Number",null,"E094872",null,"Enter the ESTMA ID number that was provided when the Reporting Entity enrolled with Natural Resources Canada (NRCan). The formatting for all ESTMA IDs is \"E\" followed by a 6 digit number (e.g., E######). Reporting Entities that have not yet enrolled should do so as soon as possible. Visit the following link for instructions on how to enrol: https://www.nrcan.gc.ca/sites/nrcan/files/mining-materials/PDF/ESTMA%20-%20NRCan%20eServices%20Portal%20User%20Guide.pdf "]
["Reporting Year","Start","2024-01-01",null,"Enter the exact date of  the start of the Reporting Entity's financial year as: YYYY-MM-DD."]
[null,"End","2024-12-31",null,"Enter the exact date of the end of the Reporting Entity's financial year as YYYY-MM-DD. \nThe reporting year should represent a full 12 month financial year. If the reporting year is less than 12 full months, a rational for the shortened year must be included in the submission email."]
["Other Non-Reporting Entities Included in the Report",{"$nulls":3},"This field is optional. You may enter the name of any non-Reporting Entity subsidiaries that have their payments disclosed in the report in this field. Reporting Entity subsidiaries included in a consolidated report are entered below."]
[]
["Consolidation"]
[]
["Does this report include payments made by other Reporting Entities",null,"No",null,"Select the cell and click on the arrow that appears at the bottom right of the cell. Select \"yes\" if the ESTMA report contains payments that are made by subsidiaries that are Reporting Entities in their own right. Please review the Act and Technical Reporting Specifications to see if you qualify to use consolidation. Selecting \"yes\" will open an additional field where subsidiary information can be entered."]
[{"$f":"IF($C$16=\"yes\",\"Additional Subsidiary Reporting Entities Included\",\"\")","v":""},{"$nulls":3},"Please enter the names and ESTMA identification Numbers for every Reporting Entity, beyond the Reporting Entity submitting the report, whose payments have been included in this submission.  The names & ESTMA Identification Numbers must separated by comas (e.g. E123456 Sub Reporting Entity 1, E234567 Sub Reporting Entity 2, etc.)."]
[]
["Report Information"]
[]
["Currency of the Report",null,"CAD",null,"Select the currency of the report from the pick list (must be in Canadian dollars, or in the currency the Reporting Entity uses in its consolidated financial statements). Reports must only use one type of currency."]
["Date Report Submitted",null,"2025-05-29",null,"Enter the date the report is submitted to NRCan in the format YYYY-MM-DD."]
[]
["Link to the Report",null,"https://petrokazakhstan.kz/en/category/estma-report/",null,"Enter the web link to the ESTMA report. The link must lead directly to the report or to a landing page where the ESTMA report is clearly identified. The report must be publicly available online for five years. NRCan must be notified if the link provided is changed or invalid at any point in time."]
[{"$f":"IF('Cover Page - do not edit'!L1=2,\"Report Version\",\"\")","v":""},{"$nulls":3},{"$f":"IF('Cover Page - do not edit'!$L$1=2,\"Select the cell and click on the arrow to enter the version number of this report (e.g., first amendment would be entered as version 2).\",\"\")","v":""}]
[]
["Substitution"]
[]
["Is this a Substituted Report",null,"No",null,"Select the cell and click on the arrow that appears at the bottom right of the cell. Select \"yes\" if this report is being submitted under a substitution determination. A listing of jurisdictions which have substitutable reporting requirements, as well as the process for submitting a substituted report can be found at the following link: www.nrcan.gc.ca/mining-materials/estma/18196."]
[{"$f":"IF($C$29=\"Yes\",\"Original Jurisdiction of the Report\",\"\")","v":""},{"$nulls":3},{"$f":"IF($C$29=\"yes\",\"Enter the jurisdiction under which the report was originally submitted.\",\"\")","v":""}]
[{"$f":"IF($C$29=\"Yes\",\"Due date in other jurisdiction\",\"\")","v":""},{"$nulls":3},{"$f":"IF($C$29=\"yes\",\"Enter the date when the report was due in the above jurisdiction in the format YYYY-MM-DD.\",\"\")","v":""}]
[]
["Attestation"]
[]
["Attestation options:"]
["By Reporting Entity: In accordance with the requirements of the ESTMA, and in particular section 9 thereof, I attest I have reviewed the information contained in the ESTMA report for the entity(ies) listed above. Based on my knowledge, and having exercised reasonable diligence, the information in the ESTMA report is true, accurate and complete in all material respects for the purposes of the Act, for the reporting year listed above. ",{"$nulls":3},"Through Independent Audit: In accordance with the requirements of the ESTMA, and in particular section 9 thereof, I attest that I engaged an independent auditor to undertake an audit of the ESTMA report for the entity(ies) and reporting year  listed above. Such an audit was conducted in accordance with the Technical Reporting Specifications issued by Natural Resources Canada for independent attestation of ESTMA reports.   \n\nThe auditor expressed an unmodified opinion, dated [ENTER DATE: YYYY-MM-DD], on the ESTMA report for the entity(ies) and period listed above.\nThe independent auditor’s report can be found at [INSERT WEBLINK TO AUDIT OPINION POSTED ONLINE – link should be on same page as report link]. "]
[]
["Attestation Type Selected",null,"By Reporting Entity",null,"Select the cell and click on the arrow that appears at the bottom right of the cell. Please note that no modifications can be made to the language of the attestation."]
[{"$f":"IF($C$38=\"Through Independent Audit\",\"Date of Audit Opinion\",\"\")","v":""},{"$nulls":3},{"$f":"IF($C$38=\"Through Independent Audit\",\"Enter the date of the audit opinion.\",\"\")","v":""}]
[{"$f":"IF($C$38=\"Through Independent Audit\",\"Audit Report Location\",\"\")","v":""},{"$nulls":3},{"$f":"IF(C38=\"Through independent audit\",\"The audit report may be  attached to the end of the ESTMA report, or a link to the website where the auditor's report is posted can be provided. Please indicate 'At End of Report,' or provide the audit report's website address.\",\"\")","v":""}]
[]
["Full Name of Director or Officer of Reporting Entity:",null,"Timur Akzholov",null,"Note: A physical signature is not required."]
["Position Title:",null,"Corporate Tax Manager",null,"Attestor must be a Director or an Officer of the Reporting Entity.  "]
["Date:",null,"2025-05-29",null,"Enter date of attestation in YYYY-MM-DD format."]
[]
["Next Steps:"]
[]
["1. Right click on the \"Data Entry\" Tab and select hide to avoid printing the Data Entry page (do not delete the tab). Should you wish to bring the tab back, you can right click on any tab and select unhide, then chose Data Entry."]
[]
["2. Proceed with entering the payment information in the Payments by Payee and Payments by Project tabs."]

{"sheet":"Cover Page - do not edit","index":1,"n_rows":21,"n_cols":12,"rows_kept":21,"merged":[[0,0,0,6],[0,7,2,7],[1,1,1,6],[3,0,4,0],[3,1,4,2],[3,3,4,4],[3,5,3,6],[4,5,4,6],[5,1,5,6],[6,0,6,6],[7,1,7,6],[8,0,8,6],[9,1,9,2],[9,3,9,5],[10,0,10,6],[12,0,16,6],[19,1,19,4],[19,5,20,5],[19,6,20,6],[20,1,20,4]]}
["Extractive Sector Transparency Measures Act - Annual Report",{"$nulls":6},"Reporting Entities May \nInsert Their Brand/Logo here",{"$nulls":3},1]
["Reporting Entity Name",{"$f":"IF('Data Entry'!C8=\"\",\"\",'Data Entry'!C8)","v":"PetroKazakhstan Inc."}]
["Reporting Year","From",{"$f":"IF('Data Entry'!C10=\"\",\"\",'Data Entry'!C10)","v":"2024-01-01"},"To:",{"$f":"IF('Data Entry'!C11=\"\",\"\",'Data Entry'!C11)","v":"2024-12-31"},"Date submitted",{"$f":"IF('Data Entry'!C22=\"\",\"\",'Data Entry'!C22)","v":"2025-05-29"}]
["Reporting Entity ESTMA Identification Number",{"$f":"IF('Data Entry'!C9=\"\",\"\",'Data Entry'!C9)","v":"E094872"},{"$nulls":3},{"$f":"IF(L1=1,\"\",\"Report Version\")","v":""}]
[{"$nulls":5},{"$f":"IF(L1=1,\"\",IF('Data Entry'!C25=\"\",\"Enter Version Number of Report\",'Data Entry'!C25))","v":""}]
["Other Subsidiaries Included \n(optional field)",{"$f":"IF('Data Entry'!C12=\"\",\"\",'Data Entry'!C12)","v":""}]
[]
[{"$f":"IF('Data Entry'!C16=\"yes\",\"For Consolidated Reports - Subsidiary Reporting Entities Included in Report:\",\"Not Consolidated\")","v":"Not Consolidated"},{"$f":"IF('Data Entry'!C16=\"yes\",IF('Data Entry'!C17=\"\",\"\",'Data Entry'!C17),\"\")","v":""}]
[]
[{"$f":"IF('Data Entry'!C29=\"yes\",\"For Substituted Reports - Jurisdiction in which the Transparency Report was Originally Filed:\",\"Not Substituted\")","v":"Not Substituted"},{"$f":"IF('Data Entry'!C29=\"yes\",IF('Data Entry'!C30=\"\",\"\",'Data Entry'!C30),\"\")","v":""},null,{"$f":"IF('Data Entry'!C29=\"yes\",\"Report Due Date in Other Jurisdiction\",\"\")","v":""},null,null,{"$f":"IF('Data Entry'!C29=\"yes\",IF('Data Entry'!C31=\"\",\"\",'Data Entry'!C31),\"\")","v":""}]
[]
[{"$f":"IF('Data Entry'!C38=\"By Reporting Entity\",\"Attestation by Reporting Entity\",\"Attestation Through Independent Audit\")","v":"Attestation by Reporting Entity"}]
[{"$f":"IF('Data Entry'!C38=\"By Reporting Entity\",RIGHT('Data Entry'!A36:C36,LEN('Data Entry'!A36:C36)-21),MID('Data Entry'!E36,28,452)&IF('Data Entry'!C39=\"\",\"YYYY-MM-DD\",TEXT('Data Entry'!C39,\"yyyy-mm-dd\"))&\", on the ESTMA Report for the entity(ies) and period listed above.\nThe independent auditor's report can be found at \"&'Data Entry'!C40&\".\")","v":"In accordance with the requirements of the ESTMA, and in particular section 9 thereof, I attest I have reviewed the information contained in the ESTMA report for the entity(ies) listed above. Based on my knowledge, and having exercised reasonable diligence, the information in the ESTMA report is true, accurate and complete in all material respects for the purposes of the Act, for the reporting year listed above. "}]
[]
[]
[]
[]
[]
[]
["Full Name of Director or Officer of Reporting Entity",{"$f":"IF('Data Entry'!C42=\"\",\"\",'Data Entry'!C42)","v":"Timur Akzholov"},{"$nulls":3},"Date",{"$f":"IF('Data Entry'!C44=\"\",\"\",'Data Entry'!C44)","v":"2025-05-29"}]
["Position Title",{"$f":"IF('Data Entry'!C43=\"\",\"\",'Data Entry'!C43)","v":"Corporate Tax Manager"}]

{"sheet":"Payments by Payee","index":2,"n_rows":264,"n_cols":101,"rows_kept":264,"merged":[[0,0,2,11],[4,1,4,5],[4,7,4,8],[5,1,5,5],[5,7,5,8],[6,1,6,5],[6,7,6,8],[7,0,7,11],[37,1,37,11],[38,0,38,10],[39,0,39,10],[40,0,40,10],[41,0,41,10]]}
["Extractive Sector Transparency Measures Act - Annual Report",{"$nulls":27},"Canada",{"$nulls":71},"CAD"]
[{"$nulls":28},"Canada -Alberta",{"$nulls":71},"USD"]
[{"$nulls":28},"Canada -British Columbia",{"$nulls":71},"AED"]
["Reporting Year","From:",{"$f":"'Cover Page - do not edit'!C3","v":"2024-01-01"},"To: ",{"$f":"'Cover Page - do not edit'!E3","v":"2024-12-31"},{"$nulls":23},"Canada -Manitoba",{"$nulls":71},"ANG"]
["Reporting Entity Name",{"$f":"'Cover Page - do not edit'!B2:G2","v":"PetroKazakhstan Inc."},{"$nulls":4},"Currency of the Report",{"$f":"IF('Data Entry'!C21=\"\",\"\",'Data Entry'!C21)","v":"CAD"},{"$nulls":20},"Canada -New Brunswick",{"$nulls":71},"AUD"]
["Reporting Entity ESTMA Identification Number",{"$f":"'Cover Page - do not edit'!B4","v":"E094872"},{"$nulls":26},"Canada -Newfoundland and Labrador",{"$nulls":71},"CDF"]
["Subsidiary Reporting Entities (if necessary)",{"$f":"'Cover Page - do not edit'!B8:G8","v":""},{"$nulls":26},"Canada -Northwest Territories",{"$nulls":71},"CHE"]
["Payments by Payee",{"$nulls":27},"Canada -Nova Scotia",{"$nulls":71},"CHF"]
["Country","Payee Name1","Departments, Agency, etc… within Payee that Received Payments2","Taxes","Royalties","Fees","Production Entitlements","Bonuses","Dividends","Infrastructure Improvement Payments","Total Amount paid to Payee","Notes34",{"$nulls":16},"Canada -Nunavut",{"$nulls":71},"CHW"]
["Kazakhstan","Government of Kazakhstan",null,{"v":159780000,"d":"159,780,000"},{"$nulls":6},{"$f":"IF(SUM(Table2[[#This Row],[Taxes]:[Infrastructure Improvement Payments]])=0,\"\",SUM(Table2[[#This Row],[Taxes]:[Infrastructure Improvement Payments]]))","v":{"v":159780000,"d":"159,780,000"}},"National Fund of the Republic of Kazakhstan",{"$nulls":16},"Canada -Ontario",{"$nulls":71},"CLF"]
["Kazakhstan","Government of Kazakhstan",null,{"v":42430000,"d":"42,430,000"},{"$nulls":6},{"$f":"IF(SUM(Table2[[#This Row],[Taxes]:[Infrastructure Improvement Payments]])=0,\"\",SUM(Table2[[#This Row],[Taxes]:[Infrastructure Improvement Payments]]))","v":{"v":42430000,"d":"42,430,000"}},"Republican budget of the Republic of Kazakhstan",{"$nulls":16},"Canada -Prince Edward Island",{"$nulls":71},"CLP"]
["Kazakhstan","Region of Kyzylorda",null,{"v":9800000,"d":"9,800,000"},{"$nulls":5},{"v":3130000,"d":"3,130,000"},{"$f":"IF(SUM(Table2[[#This Row],[Taxes]:[Infrastructure Improvement Payments]])=0,\"\",SUM(Table2[[#This Row],[Taxes]:[Infrastructure Improvement Payments]]))","v":{"v":12930000,"d":"12,930,000"}},"Local budget of Kyzylorda region of the Republic of Kazakhstan",{"$nulls":16},"Canada -Quebec",{"$nulls":71},"CNY"]
[{"$nulls":10},{"$f":"IF(SUM(Table2[[#This Row],[Taxes]:[Infrastructure Improvement Payments]])=0,\"\",SUM(Table2[[#This Row],[Taxes]:[Infrastructure Improvement Payments]]))","v":""},{"$nulls":17},"Canada -Saskatchewan",{"$nulls":71},"COP"]
[{"$nulls":10},{"$f":"IF(SUM(Table2[[#This Row],[Taxes]:[Infrastructure Improvement Payments]])=0,\"\",SUM(Table2[[#This Row],[Taxes]:[Infrastructure Improvement Payments]]))","v":""},{"$nulls":17},"Canada -Yukon",{"$nulls":71},"COU"]
[{"$nulls":10},{"$f":"IF(SUM(Table2[[#This Row],[Taxes]:[Infrastructure Improvement Payments]])=0,\"\",SUM(Table2[[#This Row],[Taxes]:[Infrastructure Improvement Payments]]))","v":""},{"$nulls":17},"Afghanistan",{"$nulls":71},"CRC"]
[{"$nulls":10},{"$f":"IF(SUM(Table2[[#This Row],[Taxes]:[Infrastructure Improvement Payments]])=0,\"\",SUM(Table2[[#This Row],[Taxes]:[Infrastructure Improvement Payments]]))","v":""},{"$nulls":17},"Åland Islands",{"$nulls":71},"CUC"]
[{"$nulls":10},{"$f":"IF(SUM(Table2[[#This Row],[Taxes]:[Infrastructure Improvement Payments]])=0,\"\",SUM(Table2[[#This Row],[Taxes]:[Infrastructure Improvement Payments]]))","v":""},{"$nulls":17},"Albania",{"$nulls":71},"CUP"]
[{"$nulls":10},{"$f":"IF(SUM(Table2[[#This Row],[Taxes]:[Infrastructure Improvement Payments]])=0,\"\",SUM(Table2[[#This Row],[Taxes]:[Infrastructure Improvement Payments]]))","v":""},{"$nulls":17},"Algeria",{"$nulls":71},"CVE"]
[{"$nulls":10},{"$f":"IF(SUM(Table2[[#This Row],[Taxes]:[Infrastructure Improvement Payments]])=0,\"\",SUM(Table2[[#This Row],[Taxes]:[Infrastructure Improvement Payments]]))","v":""},{"$nulls":17},"American Samoa",{"$nulls":71},"CZK"]
[{"$nulls":10},{"$f":"IF(SUM(Table2[[#This Row],[Taxes]:[Infrastructure Improvement Payments]])=0,\"\",SUM(Table2[[#This Row],[Taxes]:[Infrastructure Improvement Payments]]))","v":""},{"$nulls":17},"Andorra",{"$nulls":71},"DJF"]
[{"$nulls":28},"Angola",{"$nulls":71},"DKK"]
[{"$nulls":28},"Anguilla",{"$nulls":71},"DOP"]
[{"$nulls":28},"Antarctica",{"$nulls":71},"EGP"]
[{"$nulls":28},"Antigua and Barbuda",{"$nulls":71},"ERN"]
[{"$nulls":4}," ",{"$nulls":5},{"$f":"IF(SUM(Table2[[#This Row],[Taxes]:[Infrastructure Improvement Payments]])=0,\"\",SUM(Table2[[#This Row],[Taxes]:[Infrastructure Improvement Payments]]))","v":""},{"$nulls":17},"Argentina",{"$nulls":71},"ETB"]
[{"$nulls":10},{"$f":"IF(SUM(Table2[[#This Row],[Taxes]:[Infrastructure Improvement Payments]])=0,\"\",SUM(Table2[[#This Row],[Taxes]:[Infrastructure Improvement Payments]]))","v":""},{"$nulls":17},"Armenia",{"$nulls":71},"EUR"]
[{"$nulls":10},{"$f":"IF(SUM(Table2[[#This Row],[Taxes]:[Infrastructure Improvement Payments]])=0,\"\",SUM(Table2[[#This Row],[Taxes]:[Infrastructure Improvement Payments]]))","v":""},{"$nulls":17},"Aruba",{"$nulls":71},"FJD"]
[{"$nulls":10},{"$f":"IF(SUM(Table2[[#This Row],[Taxes]:[Infrastructure Improvement Payments]])=0,\"\",SUM(Table2[[#This Row],[Taxes]:[Infrastructure Improvement Payments]]))","v":""},{"$nulls":17},"Australia",{"$nulls":71},"FKP"]
[{"$nulls":10},{"$f":"IF(SUM(Table2[[#This Row],[Taxes]:[Infrastructure Improvement Payments]])=0,\"\",SUM(Table2[[#This Row],[Taxes]:[Infrastructure Improvement Payments]]))","v":""},{"$nulls":17},"Austria",{"$nulls":71},"GBP"]
[{"$nulls":10},{"$f":"IF(SUM(Table2[[#This Row],[Taxes]:[Infrastructure Improvement Payments]])=0,\"\",SUM(Table2[[#This Row],[Taxes]:[Infrastructure Improvement Payments]]))","v":""},{"$nulls":17},"Azerbaijan",{"$nulls":71},"GEL"]
[{"$nulls":10},{"$f":"IF(SUM(Table2[[#This Row],[Taxes]:[Infrastructure Improvement Payments]])=0,\"\",SUM(Table2[[#This Row],[Taxes]:[Infrastructure Improvement Payments]]))","v":""},{"$nulls":17},"Bahamas",{"$nulls":71},"GHS"]
[{"$nulls":10},{"$f":"IF(SUM(Table2[[#This Row],[Taxes]:[Infrastructure Improvement Payments]])=0,\"\",SUM(Table2[[#This Row],[Taxes]:[Infrastructure Improvement Payments]]))","v":""},{"$nulls":17},"Bahrain",{"$nulls":71},"GIP"]
[{"$nulls":10},{"$f":"IF(SUM(Table2[[#This Row],[Taxes]:[Infrastructure Improvement Payments]])=0,\"\",SUM(Table2[[#This Row],[Taxes]:[Infrastructure Improvement Payments]]))","v":""},{"$nulls":17},"Bangladesh",{"$nulls":71},"GMD"]
[{"$nulls":10},{"$f":"IF(SUM(Table2[[#This Row],[Taxes]:[Infrastructure Improvement Payments]])=0,\"\",SUM(Table2[[#This Row],[Taxes]:[Infrastructure Improvement Payments]]))","v":""},{"$nulls":17},"Barbados",{"$nulls":71},"GNF"]
[{"$nulls":10},{"$f":"IF(SUM(Table2[[#This Row],[Taxes]:[Infrastructure Improvement Payments]])=0,\"\",SUM(Table2[[#This Row],[Taxes]:[Infrastructure Improvement Payments]]))","v":""},{"$nulls":17},"Belarus",{"$nulls":71},"GTQ"]
[{"$nulls":10},{"$f":"IF(SUM(Table2[[#This Row],[Taxes]:[Infrastructure Improvement Payments]])=0,\"\",SUM(Table2[[#This Row],[Taxes]:[Infrastructure Improvement Payments]]))","v":""},{"$nulls":17},"Belgium",{"$nulls":71},"GYD"]
[{"$nulls":10},{"$f":"IF(SUM(Table2[[#This Row],[Taxes]:[Infrastructure Improvement Payments]])=0,\"\",SUM(Table2[[#This Row],[Taxes]:[Infrastructure Improvement Payments]]))","v":""},{"$nulls":17},"Belize",{"$nulls":71},"HKD"]
["Additional Notes:","All payments reported in the present spreadsheet were made in Kazakhstani national currency, tenge. The payments are converted and reported in Canadian dollars using a weighted average of exchange rates during the period, the calendar year 2024, as established by the National Bank of the Republic of Kazakhstan, KZT/CAD 342.66.",{"$nulls":26},"Benin",{"$nulls":71},"HNL"]
["1 Enter the proper name of the Payee receiving the money (i.e. the municipality of x, the province of y, national government of z). ",{"$nulls":27},"Bermuda",{"$nulls":71},"HRK"]
["2 Optional field.",{"$nulls":27},"Bhutan",{"$nulls":71},"HTG"]
["3 When payments are made in-kind, the notes field must highlight which payment includes in-kind contributions and the method for calculating the value of the payment.",{"$nulls":27},"Bolivia, Plurinational State of",{"$nulls":71},"HUF"]
["4 Any payments made in currencies other than the report currency must be identified. The Reporting Entity may use the Additional notes row or the Notes column to identify any payments that are converted, along with the exchange rate and primary method used for currency conversions.",{"$nulls":27},"Bonaire, Sint Eustatius and Saba",{"$nulls":71},"IDR"]
[{"$nulls":28},"Bosnia and Herzegovina",{"$nulls":71},"ILS"]
[{"$nulls":28},"Botswana",{"$nulls":71},"INR"]
[{"$nulls":28},"Bouvet Island",{"$nulls":71},"IQD"]
[{"$nulls":28},"Brazil",{"$nulls":71},"IRR"]
[{"$nulls":28},"British Indian Ocean Territory",{"$nulls":71},"ISK"]
[{"$nulls":28},"Brunei Darussalam",{"$nulls":71},"JMD"]
[{"$nulls":28},"Bulgaria",{"$nulls":71},"JOD"]
[{"$nulls":28},"Burkina Faso",{"$nulls":71},"JPY"]
[{"$nulls":28},"Burundi",{"$nulls":71},"KES"]
[{"$nulls":28},"Cabo Verde",{"$nulls":71},"KGS"]
[{"$nulls":28},"Cambodia",{"$nulls":71},"KHR"]
[{"$nulls":28},"Cameroon",{"$nulls":71},"KMF"]
[{"$nulls":28},"Cayman Islands",{"$nulls":71},"KPW"]
[{"$nulls":28},"Central African Republic",{"$nulls":71},"KRW"]
[{"$nulls":28},"Chad",{"$nulls":71},"KWD"]
[{"$nulls":28},"Chile",{"$nulls":71},"KYD"]
[{"$nulls":28},"China",{"$nulls":71},"KZT"]
[{"$nulls":28},"Christmas Island",{"$nulls":71},"LAK"]
[{"$nulls":28},"Cocos (Keeling) Islands",{"$nulls":71},"LBP"]
[{"$nulls":28},"Colombia",{"$nulls":71},"LKR"]
[{"$nulls":28},"Comoros",{"$nulls":71},"LRD"]
[{"$nulls":28},"Congo, Republic of the",{"$nulls":71},"LSL"]
[{"$nulls":28},"Congo, the Democratic Republic of the",{"$nulls":71},"LYD"]
[{"$nulls":28},"Cook Islands",{"$nulls":71},"MAD"]
[{"$nulls":28},"Costa Rica",{"$nulls":71},"MDL"]
[{"$nulls":28},"Côte d'Ivoire",{"$nulls":71},"MGA"]
[{"$nulls":28},"Croatia",{"$nulls":71},"MKD"]
[{"$nulls":28},"Cuba",{"$nulls":71},"MMK"]
[{"$nulls":28},"Curaçao",{"$nulls":71},"MNT"]
[{"$nulls":28},"Cyprus",{"$nulls":71},"MOP"]
[{"$nulls":28},"Czechia",{"$nulls":71},"MRO"]
[{"$nulls":28},"Denmark",{"$nulls":71},"MUR"]
[{"$nulls":28},"Djibouti",{"$nulls":71},"MVR"]
[{"$nulls":28},"Dominica",{"$nulls":71},"MWK"]
[{"$nulls":28},"Dominican Republic",{"$nulls":71},"MXN"]
[{"$nulls":28},"Ecuador",{"$nulls":71},"MXV"]
[{"$nulls":28},"Egypt",{"$nulls":71},"MYR"]
[{"$nulls":28},"El Salvador",{"$nulls":71},"MZN"]
[{"$nulls":28},"Equatorial Guinea",{"$nulls":71},"NAD"]
[{"$nulls":28},"Eritrea",{"$nulls":71},"NGN"]
[{"$nulls":28},"Estonia",{"$nulls":71},"NIO"]
[{"$nulls":28},"Eswatini"]
[{"$nulls":28},"Ethiopia",{"$nulls":71},"NOK"]
[{"$nulls":28},"Falkland Islands (Malvinas)",{"$nulls":71},"NPR"]
[{"$nulls":28},"Faroe Islands",{"$nulls":71},"NZD"]
[{"$nulls":28},"Fiji",{"$nulls":71},"OMR"]
[{"$nulls":28},"Finland",{"$nulls":71},"PAB"]
[{"$nulls":28},"France",{"$nulls":71},"PEN"]
[{"$nulls":28},"French Guiana",{"$nulls":71},"PGK"]
[{"$nulls":28},"French Polynesia",{"$nulls":71},"PHP"]
[{"$nulls":28},"French Southern Territories",{"$nulls":71},"PKR"]
[{"$nulls":28},"Gabon",{"$nulls":71},"PLN"]
[{"$nulls":28},"Gambia",{"$nulls":71},"PYG"]
[{"$nulls":28},"Georgia",{"$nulls":71},"QAR"]
[{"$nulls":28},"Germany",{"$nulls":71},"RON"]
[{"$nulls":28},"Ghana",{"$nulls":71},"RSD"]
[{"$nulls":28},"Gibraltar",{"$nulls":71},"RUB"]
[{"$nulls":28},"Greece",{"$nulls":71},"RWF"]
[{"$nulls":28},"Greenland",{"$nulls":71},"SAR"]
[{"$nulls":28},"Grenada",{"$nulls":71},"SBD"]
[{"$nulls":28},"Guadeloupe",{"$nulls":71},"SCR"]
[{"$nulls":28},"Guam",{"$nulls":71},"SDG"]
[{"$nulls":28},"Guatemala",{"$nulls":71},"SEK"]
[{"$nulls":28},"Guernsey",{"$nulls":71},"SGD"]
[{"$nulls":28},"Guinea",{"$nulls":71},"SHP"]
[{"$nulls":28},"Guinea-Bissau",{"$nulls":71},"SLL"]
[{"$nulls":28},"Guyana",{"$nulls":71},"SOS"]
[{"$nulls":28},"Haiti",{"$nulls":71},"SRD"]
[{"$nulls":28},"Heard Island and McDonald Islands",{"$nulls":71},"SSP"]
[{"$nulls":28},"Holy See (Vatican City State)",{"$nulls":71},"STD"]
[{"$nulls":28},"Honduras",{"$nulls":71},"SVC"]
[{"$nulls":28},"Hong Kong",{"$nulls":71},"SYP"]
[{"$nulls":28},"Hungary",{"$nulls":71},"SZL"]
[{"$nulls":28},"Iceland",{"$nulls":71},"THB"]
[{"$nulls":28},"India",{"$nulls":71},"TJS"]
[{"$nulls":28},"Indonesia",{"$nulls":71},"TMT"]
[{"$nulls":28},"Iran, Islamic Republic of",{"$nulls":71},"TND"]
[{"$nulls":28},"Iraq",{"$nulls":71},"TOP"]
[{"$nulls":28},"Ireland",{"$nulls":71},"TRY"]
[{"$nulls":28},"Isle of Man",{"$nulls":71},"TTD"]
[{"$nulls":28},"Israel",{"$nulls":71},"TWD"]
[{"$nulls":28},"Italy",{"$nulls":71},"TZS"]
[{"$nulls":28},"Jamaica",{"$nulls":71},"UAH"]
[{"$nulls":28},"Japan",{"$nulls":71},"UGX"]
[{"$nulls":28},"Jersey",{"$nulls":71},"USN"]
[{"$nulls":28},"Jordan",{"$nulls":71},"UYI"]
[{"$nulls":28},"Kazakhstan",{"$nulls":71},"UYU"]
[{"$nulls":28},"Kenya",{"$nulls":71},"UZS"]
[{"$nulls":28},"Kiribati",{"$nulls":71},"VEF"]
[{"$nulls":28},"Korea, Democratic People's Republic of",{"$nulls":71},"VND"]
[{"$nulls":28},"Korea, Republic of",{"$nulls":71},"VUV"]
[{"$nulls":28},"Kosovo, Republic of"]
[{"$nulls":28},"Kuwait",{"$nulls":71},"WST"]
[{"$nulls":28},"Kyrgyzstan",{"$nulls":71},"XAF"]
[{"$nulls":28},"Lao People's Democratic Republic",{"$nulls":71},"XAG"]
[{"$nulls":28},"Latvia",{"$nulls":71},"XAU"]
[{"$nulls":28},"Lebanon",{"$nulls":71},"XBA"]
[{"$nulls":28},"Lesotho",{"$nulls":71},"XBB"]
[{"$nulls":28},"Liberia",{"$nulls":71},"XBC"]
[{"$nulls":28},"Libya",{"$nulls":71},"XBD"]
[{"$nulls":28},"Liechtenstein",{"$nulls":71},"XCD"]
[{"$nulls":28},"Lithuania",{"$nulls":71},"XDR"]
[{"$nulls":28},"Luxembourg",{"$nulls":71},"XOF"]
[{"$nulls":28},"Macao",{"$nulls":71},"XPD"]
[{"$nulls":28},"Madagascar",{"$nulls":71},"XPT"]
[{"$nulls":28},"Malawi",{"$nulls":71},"XSU"]
[{"$nulls":28},"Malaysia",{"$nulls":71},"XTS"]
[{"$nulls":28},"Maldives",{"$nulls":71},"XUA"]
[{"$nulls":28},"Mali",{"$nulls":71},"XXX"]
[{"$nulls":28},"Malta",{"$nulls":71},"YER"]
[{"$nulls":28},"Marshall Islands",{"$nulls":71},"ZAR"]
[{"$nulls":28},"Martinique",{"$nulls":71},"ZMW"]
[{"$nulls":28},"Mauritania",{"$nulls":71},"ZWL"]
[{"$nulls":28},"Mauritius"]
[{"$nulls":28},"Mayotte"]
[{"$nulls":28},"Mexico"]
[{"$nulls":28},"Micronesia, Federated States of"]
[{"$nulls":28},"Moldova, Republic of"]
[{"$nulls":28},"Monaco"]
[{"$nulls":28},"Mongolia"]
[{"$nulls":28},"Montenegro"]
[{"$nulls":28},"Montserrat"]
[{"$nulls":28},"Morocco"]
[{"$nulls":28},"Mozambique"]
[{"$nulls":28},"Myanmar"]
[{"$nulls":28},"Namibia"]
[{"$nulls":28},"Nauru"]
[{"$nulls":28},"Nepal"]
[{"$nulls":28},"Netherlands"]
[{"$nulls":28},"New Caledonia"]
[{"$nulls":28},"New Zealand"]
[{"$nulls":28},"Nicaragua"]
[{"$nulls":28},"Niger"]
[{"$nulls":28},"Nigeria"]
[{"$nulls":28},"Niue"]
[{"$nulls":28},"Norfolk Island"]
[{"$nulls":28},"North Macedonia"]
[{"$nulls":28},"Northern Mariana Islands"]
[{"$nulls":28},"Norway"]
[{"$nulls":28},"Oman"]
[{"$nulls":28},"Pakistan"]
[{"$nulls":28},"Palau"]
[{"$nulls":28},"Panama"]
[{"$nulls":28},"Papua New Guinea"]
[{"$nulls":28},"Paraguay"]
[{"$nulls":28},"Peru"]
[{"$nulls":28},"Philippines"]
[{"$nulls":28},"Pitcairn"]
[{"$nulls":28},"Poland"]
[{"$nulls":28},"Portugal"]
[{"$nulls":28},"Puerto Rico"]
[{"$nulls":28},"Qatar"]
[{"$nulls":28},"Réunion"]
[{"$nulls":28},"Romania"]
[{"$nulls":28},"Russian Federation"]
[{"$nulls":28},"Rwanda"]
[{"$nulls":28},"Saint Barthélemy"]
[{"$nulls":28},"Saint Helena, Ascension and Tristan da Cunha"]
[{"$nulls":28},"Saint Kitts and Nevis"]
[{"$nulls":28},"Saint Lucia"]
[{"$nulls":28},"Saint Martin (French part)"]
[{"$nulls":28},"Saint Pierre and Miquelon"]
[{"$nulls":28},"Saint Vincent and the Grenadines"]
[{"$nulls":28},"Samoa"]
[{"$nulls":28},"San Marino"]
[{"$nulls":28},"Sao Tome and Principe"]
[{"$nulls":28},"Sark"]
[{"$nulls":28},"Saudi Arabia"]
[{"$nulls":28},"Senegal"]
[{"$nulls":28},"Serbia"]
[{"$nulls":28},"Seychelles"]
[{"$nulls":28},"Sierra Leone"]
[{"$nulls":28},"Singapore"]
[{"$nulls":28},"Sint Maarten (Dutch part)"]
[{"$nulls":28},"Slovakia"]
[{"$nulls":28},"Slovenia"]
[{"$nulls":28},"Solomon Islands"]
[{"$nulls":28},"Somalia"]
[{"$nulls":28},"South Africa, Republic of"]
[{"$nulls":28},"South Georgia and the South Sandwich Islands"]
[{"$nulls":28},"South Sudan"]
[{"$nulls":28},"Spain"]
[{"$nulls":28},"Sri Lanka"]
[{"$nulls":28},"Sudan"]
[{"$nulls":28},"Suriname"]
[{"$nulls":28},"Svalbard and Jan Mayen"]
[{"$nulls":28},"Sweden"]
[{"$nulls":28},"Switzerland"]
[{"$nulls":28},"Syrian Arab Republic"]
[{"$nulls":28},"Taiwan, Province of China"]
[{"$nulls":28},"Tajikistan"]
[{"$nulls":28},"Tanzania, United Republic of"]
[{"$nulls":28},"Thailand"]
[{"$nulls":28},"Timor-Leste"]
[{"$nulls":28},"Togo"]
[{"$nulls":28},"Tokelau"]
[{"$nulls":28},"Tonga"]
[{"$nulls":28},"Trinidad and Tobago"]
[{"$nulls":28},"Tunisia"]
[{"$nulls":28},"Turkey"]
[{"$nulls":28},"Turkmenistan"]
[{"$nulls":28},"Turks and Caicos Islands"]
[{"$nulls":28},"Tuvalu"]
[{"$nulls":28},"Uganda"]
[{"$nulls":28},"Ukraine"]
[{"$nulls":28},"United Arab Emirates"]
[{"$nulls":28},"United Kingdom of Great Britain and Northern Ireland"]
[{"$nulls":28},"United States Minor Outlying Islands"]
[{"$nulls":28},"United States of America"]
[{"$nulls":28},"Uruguay"]
[{"$nulls":28},"Uzbekistan"]
[{"$nulls":28},"Vanuatu"]
[{"$nulls":28},"Venezuela, Bolivarian Republic of"]
[{"$nulls":28},"Viet Nam"]
[{"$nulls":28},"Virgin Islands, British"]
[{"$nulls":28},"Virgin Islands, U.S."]
[{"$nulls":28},"Wallis and Futuna"]
[{"$nulls":28},"West Bank and Gaza"]
[{"$nulls":28},"Western Sahara"]
[{"$nulls":28},"Yemen"]
[{"$nulls":28},"Zambia"]
[{"$nulls":28},"Zimbabwe"]

{"sheet":"Payments by Project","index":3,"n_rows":264,"n_cols":28,"rows_kept":264,"merged":[[0,0,2,10],[4,1,4,5],[4,7,4,8],[5,1,5,5],[5,7,5,8],[6,1,6,5],[6,7,6,8],[7,0,7,10],[37,1,37,10],[38,0,38,10],[39,0,39,10]]}
["Extractive Sector Transparency Measures Act - Annual Report",{"$nulls":26},"Canada"]
[{"$nulls":27},"Canada -Alberta"]
[{"$nulls":27},"Canada -British Columbia"]
["Reporting Year","From:",{"$f":"'Cover Page - do not edit'!C3","v":"2024-01-01"},"To: ",{"$f":"'Cover Page - do not edit'!E3","v":"2024-12-31"},{"$nulls":22},"Canada -Manitoba"]
["Reporting Entity Name",{"$f":"'Cover Page - do not edit'!B2:G2","v":"PetroKazakhstan Inc."},{"$nulls":4},"Currency of the Report",{"$f":"IF('Data Entry'!C21=\"\",\"\",'Data Entry'!C21)","v":"CAD"},{"$nulls":19},"Canada -New Brunswick"]
["Reporting Entity ESTMA Identification Number",{"$f":"'Cover Page - do not edit'!B4","v":"E094872"},{"$nulls":25},"Canada -Newfoundland and Labrador"]
["Subsidiary Reporting Entities (if necessary)",{"$f":"'Cover Page - do not edit'!B8:G8","v":""},{"$nulls":25},"Canada -Northwest Territories"]
["Payments by Project",{"$nulls":26},"Canada -Nova Scotia"]
["Country","Project Name1","Taxes","Royalties","Fees","Production Entitlements","Bonuses","Dividends","Infrastructure Improvement Payments","Total Amount paid by Project","Notes23",{"$nulls":16},"Canada -Nunavut"]
[{"$nulls":9},{"$f":"IF(SUM(Table25[[#This Row],[Taxes]:[Infrastructure Improvement Payments]])=0,\"\",SUM(Table25[[#This Row],[Taxes]:[Infrastructure Improvement Payments]]))","v":""},{"$nulls":17},"Canada -Ontario"]
["Kazakhstan","JSC PetroKazakhstan Kumkol Resources",{"v":69960000,"d":"69,960,000"},{"$nulls":5},{"v":1880000,"d":"1,880,000"},{"$f":"IF(SUM(Table25[[#This Row],[Taxes]:[Infrastructure Improvement Payments]])=0,\"\",SUM(Table25[[#This Row],[Taxes]:[Infrastructure Improvement Payments]]))","v":{"v":71840000,"d":"71,840,000"}},"All payments reported in the present spreadsheet were made in Kazakhstani national currency, tenge. The payments are converted and reported in Canadian dollars using a weighted average of exchange rates during the period, the calendar year 2024, as established by the National Bank of the Republic of Kazakhstan, KZT/CAD 342.66.",{"$nulls":16},"Canada -Prince Edward Island"]
["Kazakhstan","Kolzhan LLP",{"v":50120000,"d":"50,120,000"},{"$nulls":5},{"v":380000,"d":"380,000"},{"$f":"IF(SUM(Table25[[#This Row],[Taxes]:[Infrastructure Improvement Payments]])=0,\"\",SUM(Table25[[#This Row],[Taxes]:[Infrastructure Improvement Payments]]))","v":{"v":50500000,"d":"50,500,000"}},{"$nulls":17},"Canada -Quebec"]
["Kazakhstan","PetroKazakhstan Ventures Inc. ",{"v":3150000,"d":"3,150,000"},{"$nulls":5},{"v":70000,"d":"70,000"},{"$f":"IF(SUM(Table25[[#This Row],[Taxes]:[Infrastructure Improvement Payments]])=0,\"\",SUM(Table25[[#This Row],[Taxes]:[Infrastructure Improvement Payments]]))","v":{"v":3220000,"d":"3,220,000"}},{"$nulls":17},"Canada -Saskatchewan"]
["Kazakhstan","JSC Turgai Petroleum",{"v":6040000,"d":"6,040,000"},{"$nulls":5},{"v":250000,"d":"250,000"},{"$f":"IF(SUM(Table25[[#This Row],[Taxes]:[Infrastructure Improvement Payments]])=0,\"\",SUM(Table25[[#This Row],[Taxes]:[Infrastructure Improvement Payments]]))","v":{"v":6290000,"d":"6,290,000"}},"The payments indicated in the present spreadsheet represent 50% of total payments made by JSC Turgai Petroleum, based on 50% ownership share. ",{"$nulls":16},"Canada -Yukon"]
["Kazakhstan","KazGerMunai LLP",{"v":82740000,"d":"82,740,000"},{"$nulls":5},{"v":550000,"d":"550,000"},{"$f":"IF(SUM(Table25[[#This Row],[Taxes]:[Infrastructure Improvement Payments]])=0,\"\",SUM(Table25[[#This Row],[Taxes]:[Infrastructure Improvement Payments]]))","v":{"v":83290000,"d":"83,290,000"}},"The payments indicated in the present spreadsheet represent 50% of total payments made by KazGerMunai LLP, based on 50% ownership share. ",{"$nulls":16},"Afghanistan"]
[{"$nulls":9},{"$f":"IF(SUM(Table25[[#This Row],[Taxes]:[Infrastructure Improvement Payments]])=0,\"\",SUM(Table25[[#This Row],[Taxes]:[Infrastructure Improvement Payments]]))","v":""},{"$nulls":17},"Åland Islands"]
[{"$nulls":9},{"$f":"IF(SUM(Table25[[#This Row],[Taxes]:[Infrastructure Improvement Payments]])=0,\"\",SUM(Table25[[#This Row],[Taxes]:[Infrastructure Improvement Payments]]))","v":""},{"$nulls":17},"Albania"]
[{"$nulls":9},{"$f":"IF(SUM(Table25[[#This Row],[Taxes]:[Infrastructure Improvement Payments]])=0,\"\",SUM(Table25[[#This Row],[Taxes]:[Infrastructure Improvement Payments]]))","v":""},{"$nulls":17},"Algeria"]
[{"$nulls":9},{"$f":"IF(SUM(Table25[[#This Row],[Taxes]:[Infrastructure Improvement Payments]])=0,\"\",SUM(Table25[[#This Row],[Taxes]:[Infrastructure Improvement Payments]]))","v":""},{"$nulls":17},"American Samoa"]
[{"$nulls":9},{"$f":"IF(SUM(Table25[[#This Row],[Taxes]:[Infrastructure Improvement Payments]])=0,\"\",SUM(Table25[[#This Row],[Taxes]:[Infrastructure Improvement Payments]]))","v":""},{"$nulls":17},"Andorra"]
[{"$nulls":9},{"$f":"IF(SUM(Table25[[#This Row],[Taxes]:[Infrastructure Improvement Payments]])=0,\"\",SUM(Table25[[#This Row],[Taxes]:[Infrastructure Improvement Payments]]))","v":""},{"$nulls":17},"Angola"]
[{"$nulls":9},{"$f":"IF(SUM(Table25[[#This Row],[Taxes]:[Infrastructure Improvement Payments]])=0,\"\",SUM(Table25[[#This Row],[Taxes]:[Infrastructure Improvement Payments]]))","v":""},{"$nulls":17},"Anguilla"]
[{"$nulls":9},{"$f":"IF(SUM(Table25[[#This Row],[Taxes]:[Infrastructure Improvement Payments]])=0,\"\",SUM(Table25[[#This Row],[Taxes]:[Infrastructure Improvement Payments]]))","v":""},{"$nulls":17},"Antarctica"]
[{"$nulls":9},{"$f":"IF(SUM(Table25[[#This Row],[Taxes]:[Infrastructure Improvement Payments]])=0,\"\",SUM(Table25[[#This Row],[Taxes]:[Infrastructure Improvement Payments]]))","v":""},{"$nulls":17},"Antigua and Barbuda"]
[{"$nulls":9},{"$f":"IF(SUM(Table25[[#This Row],[Taxes]:[Infrastructure Improvement Payments]])=0,\"\",SUM(Table25[[#This Row],[Taxes]:[Infrastructure Improvement Payments]]))","v":""},{"$nulls":17},"Argentina"]
[{"$nulls":9},{"$f":"IF(SUM(Table25[[#This Row],[Taxes]:[Infrastructure Improvement Payments]])=0,\"\",SUM(Table25[[#This Row],[Taxes]:[Infrastructure Improvement Payments]]))","v":""},{"$nulls":17},"Armenia"]
[{"$nulls":9},{"$f":"IF(SUM(Table25[[#This Row],[Taxes]:[Infrastructure Improvement Payments]])=0,\"\",SUM(Table25[[#This Row],[Taxes]:[Infrastructure Improvement Payments]]))","v":""},{"$nulls":17},"Aruba"]
[{"$nulls":9},{"$f":"IF(SUM(Table25[[#This Row],[Taxes]:[Infrastructure Improvement Payments]])=0,\"\",SUM(Table25[[#This Row],[Taxes]:[Infrastructure Improvement Payments]]))","v":""},{"$nulls":17},"Australia"]
[{"$nulls":9},{"$f":"IF(SUM(Table25[[#This Row],[Taxes]:[Infrastructure Improvement Payments]])=0,\"\",SUM(Table25[[#This Row],[Taxes]:[Infrastructure Improvement Payments]]))","v":""},{"$nulls":17},"Austria"]
[{"$nulls":9},{"$f":"IF(SUM(Table25[[#This Row],[Taxes]:[Infrastructure Improvement Payments]])=0,\"\",SUM(Table25[[#This Row],[Taxes]:[Infrastructure Improvement Payments]]))","v":""},{"$nulls":17},"Azerbaijan"]
[{"$nulls":9},{"$f":"IF(SUM(Table25[[#This Row],[Taxes]:[Infrastructure Improvement Payments]])=0,\"\",SUM(Table25[[#This Row],[Taxes]:[Infrastructure Improvement Payments]]))","v":""},{"$nulls":17},"Bahamas"]
[{"$nulls":9},{"$f":"IF(SUM(Table25[[#This Row],[Taxes]:[Infrastructure Improvement Payments]])=0,\"\",SUM(Table25[[#This Row],[Taxes]:[Infrastructure Improvement Payments]]))","v":""},{"$nulls":17},"Bahrain"]
[{"$nulls":9},{"$f":"IF(SUM(Table25[[#This Row],[Taxes]:[Infrastructure Improvement Payments]])=0,\"\",SUM(Table25[[#This Row],[Taxes]:[Infrastructure Improvement Payments]]))","v":""},{"$nulls":17},"Bangladesh"]
[{"$nulls":9},{"$f":"IF(SUM(Table25[[#This Row],[Taxes]:[Infrastructure Improvement Payments]])=0,\"\",SUM(Table25[[#This Row],[Taxes]:[Infrastructure Improvement Payments]]))","v":""},{"$nulls":17},"Barbados"]
[{"$nulls":9},{"$f":"IF(SUM(Table25[[#This Row],[Taxes]:[Infrastructure Improvement Payments]])=0,\"\",SUM(Table25[[#This Row],[Taxes]:[Infrastructure Improvement Payments]]))","v":""},{"$nulls":17},"Belarus"]
[{"$nulls":9},{"$f":"IF(SUM(Table25[[#This Row],[Taxes]:[Infrastructure Improvement Payments]])=0,\"\",SUM(Table25[[#This Row],[Taxes]:[Infrastructure Improvement Payments]]))","v":""},{"$nulls":17},"Belgium"]
[{"$nulls":9},{"$f":"IF(SUM(Table25[[#This Row],[Taxes]:[Infrastructure Improvement Payments]])=0,\"\",SUM(Table25[[#This Row],[Taxes]:[Infrastructure Improvement Payments]]))","v":""},{"$nulls":17},"Belize"]
["Additional Notes3:","All payments reported in the present spreadsheet were made in Kazakhstani national currency, tenge. The payments are converted and reported in Canadian dollars using a weighted average of exchange rates during the period, the calendar year 2024, as established by the National Bank of the Republic of Kazakhstan, KZT/CAD 342.66.",{"$nulls":25},"Benin"]
["1 Enter the project that the payment is attributed to. Some payments may not be attributable to a specific project, and do not need to be disclosed in the \"Payments by Project\" table.",{"$nulls":26},"Bermuda"]
["3 Any payments made in currencies other than the report currency must be identified. The Reporting Entity may use the \"Additional Notes\" row or the \"Notes\" column to identify any payments that are converted, along with the exchange rate and primary method used for currency conversions.",{"$nulls":26},"Bhutan"]
[{"$nulls":27},"Bolivia, Plurinational State of"]
[{"$nulls":27},"Bonaire, Sint Eustatius and Saba"]
[{"$nulls":27},"Bosnia and Herzegovina"]
[{"$nulls":27},"Botswana"]
[{"$nulls":27},"Bouvet Island"]
[{"$nulls":27},"Brazil"]
[{"$nulls":27},"British Indian Ocean Territory"]
[{"$nulls":27},"Brunei Darussalam"]
[{"$nulls":27},"Bulgaria"]
[{"$nulls":27},"Burkina Faso"]
[{"$nulls":27},"Burundi"]
[{"$nulls":27},"Cabo Verde"]
[{"$nulls":27},"Cambodia"]
[{"$nulls":27},"Cameroon"]
[{"$nulls":27},"Cayman Islands"]
[{"$nulls":27},"Central African Republic"]
[{"$nulls":27},"Chad"]
[{"$nulls":27},"Chile"]
[{"$nulls":27},"China"]
[{"$nulls":27},"Christmas Island"]
[{"$nulls":27},"Cocos (Keeling) Islands"]
[{"$nulls":27},"Colombia"]
[{"$nulls":27},"Comoros"]
[{"$nulls":27},"Congo, Republic of the"]
[{"$nulls":27},"Congo, the Democratic Republic of the"]
[{"$nulls":27},"Cook Islands"]
[{"$nulls":27},"Costa Rica"]
[{"$nulls":27},"Côte d'Ivoire"]
[{"$nulls":27},"Croatia"]
[{"$nulls":27},"Cuba"]
[{"$nulls":27},"Curaçao"]
[{"$nulls":27},"Cyprus"]
[{"$nulls":27},"Czechia"]
[{"$nulls":27},"Denmark"]
[{"$nulls":27},"Djibouti"]
[{"$nulls":27},"Dominica"]
[{"$nulls":27},"Dominican Republic"]
[{"$nulls":27},"Ecuador"]
[{"$nulls":27},"Egypt"]
[{"$nulls":27},"El Salvador"]
[{"$nulls":27},"Equatorial Guinea"]
[{"$nulls":27},"Eritrea"]
[{"$nulls":27},"Estonia"]
[{"$nulls":27},"Eswatini"]
[{"$nulls":27},"Ethiopia"]
[{"$nulls":27},"Falkland Islands (Malvinas)"]
[{"$nulls":27},"Faroe Islands"]
[{"$nulls":27},"Fiji"]
[{"$nulls":27},"Finland"]
[{"$nulls":27},"France"]
[{"$nulls":27},"French Guiana"]
[{"$nulls":27},"French Polynesia"]
[{"$nulls":27},"French Southern Territories"]
[{"$nulls":27},"Gabon"]
[{"$nulls":27},"Gambia"]
[{"$nulls":27},"Georgia"]
[{"$nulls":27},"Germany"]
[{"$nulls":27},"Ghana"]
[{"$nulls":27},"Gibraltar"]
[{"$nulls":27},"Greece"]
[{"$nulls":27},"Greenland"]
[{"$nulls":27},"Grenada"]
[{"$nulls":27},"Guadeloupe"]
[{"$nulls":27},"Guam"]
[{"$nulls":27},"Guatemala"]
[{"$nulls":27},"Guernsey"]
[{"$nulls":27},"Guinea"]
[{"$nulls":27},"Guinea-Bissau"]
[{"$nulls":27},"Guyana"]
[{"$nulls":27},"Haiti"]
[{"$nulls":27},"Heard Island and McDonald Islands"]
[{"$nulls":27},"Holy See (Vatican City State)"]
[{"$nulls":27},"Honduras"]
[{"$nulls":27},"Hong Kong"]
[{"$nulls":27},"Hungary"]
[{"$nulls":27},"Iceland"]
[{"$nulls":27},"India"]
[{"$nulls":27},"Indonesia"]
[{"$nulls":27},"Iran, Islamic Republic of"]
[{"$nulls":27},"Iraq"]
[{"$nulls":27},"Ireland"]
[{"$nulls":27},"Isle of Man"]
[{"$nulls":27},"Israel"]
[{"$nulls":27},"Italy"]
[{"$nulls":27},"Jamaica"]
[{"$nulls":27},"Japan"]
[{"$nulls":27},"Jersey"]
[{"$nulls":27},"Jordan"]
[{"$nulls":27},"Kazakhstan"]
[{"$nulls":27},"Kenya"]
[{"$nulls":27},"Kiribati"]
[{"$nulls":27},"Korea, Democratic People's Republic of"]
[{"$nulls":27},"Korea, Republic of"]
[{"$nulls":27},"Kosovo, Republic of "]
[{"$nulls":27},"Kuwait"]
[{"$nulls":27},"Kyrgyzstan"]
[{"$nulls":27},"Lao People's Democratic Republic"]
[{"$nulls":27},"Latvia"]
[{"$nulls":27},"Lebanon"]
[{"$nulls":27},"Lesotho"]
[{"$nulls":27},"Liberia"]
[{"$nulls":27},"Libya"]
[{"$nulls":27},"Liechtenstein"]
[{"$nulls":27},"Lithuania"]
[{"$nulls":27},"Luxembourg"]
[{"$nulls":27},"Macao"]
[{"$nulls":27},"Madagascar"]
[{"$nulls":27},"Malawi"]
[{"$nulls":27},"Malaysia"]
[{"$nulls":27},"Maldives"]
[{"$nulls":27},"Mali"]
[{"$nulls":27},"Malta"]
[{"$nulls":27},"Marshall Islands"]
[{"$nulls":27},"Martinique"]
[{"$nulls":27},"Mauritania"]
[{"$nulls":27},"Mauritius"]
[{"$nulls":27},"Mayotte"]
[{"$nulls":27},"Mexico"]
[{"$nulls":27},"Micronesia, Federated States of"]
[{"$nulls":27},"Moldova, Republic of"]
[{"$nulls":27},"Monaco"]
[{"$nulls":27},"Mongolia"]
[{"$nulls":27},"Montenegro"]
[{"$nulls":27},"Montserrat"]
[{"$nulls":27},"Morocco"]
[{"$nulls":27},"Mozambique"]
[{"$nulls":27},"Myanmar"]
[{"$nulls":27},"Namibia"]
[{"$nulls":27},"Nauru"]
[{"$nulls":27},"Nepal"]
[{"$nulls":27},"Netherlands"]
[{"$nulls":27},"New Caledonia"]
[{"$nulls":27},"New Zealand"]
[{"$nulls":27},"Nicaragua"]
[{"$nulls":27},"Niger"]
[{"$nulls":27},"Nigeria"]
[{"$nulls":27},"Niue"]
[{"$nulls":27},"Norfolk Island"]
[{"$nulls":27},"North Macedonia"]
[{"$nulls":27},"Northern Mariana Islands"]
[{"$nulls":27},"Norway"]
[{"$nulls":27},"Oman"]
[{"$nulls":27},"Pakistan"]
[{"$nulls":27},"Palau"]
[{"$nulls":27},"Panama"]
[{"$nulls":27},"Papua New Guinea"]
[{"$nulls":27},"Paraguay"]
[{"$nulls":27},"Peru"]
[{"$nulls":27},"Philippines"]
[{"$nulls":27},"Pitcairn"]
[{"$nulls":27},"Poland"]
[{"$nulls":27},"Portugal"]
[{"$nulls":27},"Puerto Rico"]
[{"$nulls":27},"Qatar"]
[{"$nulls":27},"Réunion"]
[{"$nulls":27},"Romania"]
[{"$nulls":27},"Russian Federation"]
[{"$nulls":27},"Rwanda"]
[{"$nulls":27},"Saint Barthélemy"]
[{"$nulls":27},"Saint Helena, Ascension and Tristan da Cunha"]
[{"$nulls":27},"Saint Kitts and Nevis"]
[{"$nulls":27},"Saint Lucia"]
[{"$nulls":27},"Saint Martin (French part)"]
[{"$nulls":27},"Saint Pierre and Miquelon"]
[{"$nulls":27},"Saint Vincent and the Grenadines"]
[{"$nulls":27},"Samoa"]
[{"$nulls":27},"San Marino"]
[{"$nulls":27},"Sao Tome and Principe"]
[{"$nulls":27},"Sark"]
[{"$nulls":27},"Saudi Arabia"]
[{"$nulls":27},"Senegal"]
[{"$nulls":27},"Serbia"]
[{"$nulls":27},"Seychelles"]
[{"$nulls":27},"Sierra Leone"]
[{"$nulls":27},"Singapore"]
[{"$nulls":27},"Sint Maarten (Dutch part)"]
[{"$nulls":27},"Slovakia"]
[{"$nulls":27},"Slovenia"]
[{"$nulls":27},"Solomon Islands"]
[{"$nulls":27},"Somalia"]
[{"$nulls":27},"South Africa, Republic of"]
[{"$nulls":27},"South Georgia and the South Sandwich Islands"]
[{"$nulls":27},"South Sudan"]
[{"$nulls":27},"Spain"]
[{"$nulls":27},"Sri Lanka"]
[{"$nulls":27},"Sudan"]
[{"$nulls":27},"Suriname"]
[{"$nulls":27},"Svalbard and Jan Mayen"]
[{"$nulls":27},"Sweden"]
[{"$nulls":27},"Switzerland"]
[{"$nulls":27},"Syrian Arab Republic"]
[{"$nulls":27},"Taiwan, Province of China"]
[{"$nulls":27},"Tajikistan"]
[{"$nulls":27},"Tanzania, United Republic of"]
[{"$nulls":27},"Thailand"]
[{"$nulls":27},"Timor-Leste"]
[{"$nulls":27},"Togo"]
[{"$nulls":27},"Tokelau"]
[{"$nulls":27},"Tonga"]
[{"$nulls":27},"Trinidad and Tobago"]
[{"$nulls":27},"Tunisia"]
[{"$nulls":27},"Turkey"]
[{"$nulls":27},"Turkmenistan"]
[{"$nulls":27},"Turks and Caicos Islands"]
[{"$nulls":27},"Tuvalu"]
[{"$nulls":27},"Uganda"]
[{"$nulls":27},"Ukraine"]
[{"$nulls":27},"United Arab Emirates"]
[{"$nulls":27},"United Kingdom of Great Britain and Northern Ireland"]
[{"$nulls":27},"United States Minor Outlying Islands"]
[{"$nulls":27},"United States of America"]
[{"$nulls":27},"Uruguay"]
[{"$nulls":27},"Uzbekistan"]
[{"$nulls":27},"Vanuatu"]
[{"$nulls":27},"Venezuela, Bolivarian Republic of"]
[{"$nulls":27},"Viet Nam"]
[{"$nulls":27},"Virgin Islands, British"]
[{"$nulls":27},"Virgin Islands, U.S."]
[{"$nulls":27},"Wallis and Futuna"]
[{"$nulls":27},"West Bank and Gaza"]
[{"$nulls":27},"Western Sahara"]
[{"$nulls":27},"Yemen"]
[{"$nulls":27},"Zambia"]
[{"$nulls":27},"Zimbabwe"]

{"sheet":"Sheet2","index":4,"n_rows":0,"n_cols":0,"rows_kept":0,"hidden":true}